bitfinex/quotes_SOLUSD_20250201
["timestamp","ask_amount","ask_price","bid_price","bid_amount"]
[1738446186199,20.0,217.05,216.93,22.45320175]
[1738446187916,20.0,217.05,216.97,22.45320175]
[1738446188519,0.03,217.07,216.99,22.45320175]
[1738446188829,0.03,217.07,217.01,22.45320175]
[1738446189016,0.03,217.07,217.04,22.45320175]
[1738446190110,0.03,217.07,217.05,22.45320175]
[1738446190314,0.03,217.07,217.06,22.45320175]
[1738446190704,0.03,217.07,217.04,22.45320175]
[1738446190904,0.03,217.07,217.05,23.1441689]
[1738446192228,0.03,217.07,217.06,22.45320175]
[1738446192725,0.03,217.07,217.05,22.45320175]
[1738446192935,0.03,217.07,217.06,0.69092514]
[1738446193745,0.03,217.07,217.06,23.14412689]
[1738446196229,0.03,217.07,217.06,23.11727546]
[1738446201137,0.03,217.07,217.06,36.52912399]
[1738446201945,0.03,217.07,217.06,37.52912399]
[1738446202338,0.03,217.07,217.06,42.13612399]
[1738446203259,0.03,217.07,217.06,43.77072399]
[1738446203439,20.0,217.21,217.14,22.45320175]
[1738446203627,1.5145,217.22,217.15,23.11696616]
[1738446203954,1.5145,217.22,217.15,14.66806586]
[1738446204453,20.0,217.21,217.15,14.66806586]
[1738446205035,20.0,217.21,217.15,0.66376441]
[1738446205242,20.0,217.21,217.11,0.66392426]
[1738446205441,20.0,217.21,217.09,0.66392439]
[1738446206161,20.0,217.21,217.09,14.66822584]
[1738446206541,20.0,217.21,217.09,0.66392439]
[1738446207065,20.0,217.21,217.09,14.66822584]
[1738446209969,20.0,217.21,217.11,14.00430145]
[1738446210168,0.03,217.23,217.18,14.00430145]
[1738446210336,0.03,217.23,217.19,14.66800876]
[1738446210658,20.0,217.22,217.1,0.66365828]
[1738446211553,0.03,217.23,217.12,14.00430145]
[1738446211859,0.03,217.23,217.13,0.66385141]
[1738446213040,0.03,217.23,217.14,14.00430145]
[1738446213247,0.03,217.23,217.17,14.00430145]
[1738446213646,0.03,217.23,217.16,14.00430145]
[1738446213837,0.03,217.23,217.12,14.00430145]
[1738446214036,20.0,217.21,217.1,0.66378009]
[1738446214234,20.0,217.21,217.11,14.00430145]
[1738446214460,0.03,217.23,217.12,14.66819976]
[1738446215047,0.03,217.23,217.13,14.00430145]
[1738446215558,0.03,217.23,217.14,0.66386784]
[1738446216749,0.03,217.23,217.1,14.00430145]
[1738446216944,0.03,217.23,217.06,12.1559]
[1738446216945,20.0,217.21,217.11,0.66389928]
[1738446217959,20.0,217.21,217.11,14.66820073]
[1738446218764,20.0,217.21,217.11,0.66389928]
[1738446220168,20.0,217.17,217.07,0.063]
[1738446221665,20.0,217.17,217.07,14.06730145]
[1738446221971,1.564,217.18,217.08,14.66834962]
[1738446222354,1.564,217.18,217.09,14.00430145]
[1738446222650,1.564,217.18,217.1,14.66827762]
[1738446222958,1.564,217.18,217.08,14.00430145]
[1738446223451,1.564,217.18,217.09,0.66400206]
[1738446223652,1.564,217.18,217.09,14.66830351]
[1738446223971,1.564,217.18,217.1,14.00430145]
[1738446224151,1.564,217.18,217.11,14.00430145]
[1738446225547,1.564,217.18,217.07,0.72695665]
[1738446225548,1.5778,217.23,217.13,14.00430145]
[1738446225744,1.5778,217.23,217.14,14.66818854]
[1738446225950,20.0,217.21,217.14,14.66818854]
[1738446227160,20.0,217.21,217.1,14.00430145]
[1738446227360,20.0,217.21,217.11,0.66391688]
[1738446228379,20.0,217.21,217.11,14.66821833]
[1738446229472,20.0,217.21,217.11,0.66391688]
[1738446230086,20.0,217.21,217.11,0.72691688]
[1738446230583,20.03,217.21,217.11,0.063]
[1738446234687,20.0,217.17,217.11,0.063]
[1738446241382,1.13117088,217.2,217.11,0.063]
[1738446241596,0.03,217.21,217.11,0.063]
[1738446241779,0.03,217.21,217.11,0.75380751]
[1738446242085,0.03,217.21,217.11,0.7538156]
[1738446242268,0.03,217.21,217.11,14.75811705]
[1738446243889,20.03,217.21,217.11,14.75811705]
[1738446246388,10.03,217.21,217.11,14.75811705]
[1738446248995,10.03,217.21,217.12,14.00430145]
[1738446249296,0.03,217.23,217.17,14.00430145]
[1738446249792,0.03,217.23,217.14,8.96193669]
[1738446249971,0.03,217.23,217.15,9.65257415]
[1738446250166,0.03,217.23,217.15,0.69063746]
[1738446250975,0.03,217.23,217.16,0.69063931]
[1738446253692,0.03,217.23,217.15,0.69063412]
[1738446254272,1.5304,217.22,217.13,0.69063231]
[1738446254481,20.0,217.2,217.12,0.69074621]
[1738446255169,1.5304,217.22,217.12,0.69074621]
[1738446255370,20.0,217.2,217.12,0.69074621]
[1738446256697,20.0,217.2,217.11,0.75376426]
[1738446256894,20.0,217.18,217.11,0.063]
[1738446257393,15.0,217.18,217.11,0.063]
[1738446261294,1.13346776,217.19,217.11,0.063]
[1738446261600,13.41184853,217.21,217.11,0.063]
[1738446261785,20.0,217.18,217.11,14.08018957]
[1738446262699,1.16563187,217.21,217.11,0.063]
[1738446262902,20.0,217.2,217.11,0.063]
[1738446266002,13.41184853,217.19,217.11,0.063]
[1738446266207,20.0,217.16,217.11,0.063]
[1738446268305,1.844701,217.15,217.11,0.063]
[1738446271498,20.0,217.16,217.11,0.063]
[1738446271999,0.03,217.2,217.11,0.063]
[1738446272703,20.0,217.18,217.11,0.063]
[1738446273797,20.0,217.19,217.11,0.75382143]
[1738446273985,20.0,217.19,217.11,14.771011]
[1738446274190,0.03,217.2,217.12,14.01718957]
[1738446274393,0.03,217.2,217.13,0.69074785]
[1738446274804,0.03,217.2,217.12,0.69074529]
[1738446275519,0.03,217.2,217.12,14.70793486]
[1738446276824,0.03,217.2,217.12,0.69074529]
[1738446279489,0.03,217.2,217.13,14.01718957]
[1738446279695,0.03,217.2,217.14,14.70788462]
[1738446280187,0.03,217.2,217.14,0.69069505]
[1738446281906,0.03,217.2,217.14,14.70788462]
[1738446282215,0.03,217.2,217.14,0.69069505]
[1738446282600,0.03,217.2,217.12,0.69068007]
[1738446282800,0.03,217.2,217.11,6.6277]
[1738446283612,20.03,217.2,217.11,6.6277]
[1738446285114,0.03,217.2,217.12,0.69079382]
[1738446286914,0.03,217.2,217.11,7.31847909]
[1738446287705,20.0,217.19,217.11,6.6277]
[1738446289014,20.0,217.19,217.11,7.31852113]
[1738446289920,20.0,217.19,217.11,6.6277]
[1738446292211,0.03,217.2,217.12,0.69079712]
[1738446293521,0.03,217.2,217.12,9.66016401]
[1738446293939,0.03,217.2,217.14,8.96936689]
[1738446294233,0.03,217.2,217.16,8.96936689]
[1738446294435,0.03,217.2,217.18,10.62426689]
[1738446294641,0.03,217.2,217.19,0.69050233]
[1738446295535,0.03,217.2,217.18,1.6549]
[1738446295744,0.03,217.2,217.15,0.69061556]
[1738446295912,0.03,217.2,217.13,1.6549]
[1738446296116,0.03,217.2,217.14,0.69072087]
[1738446296849,0.03,217.2,217.14,9.66008776]
[1738446298340,0.03,217.2,217.16,8.96936689]
[1738446298538,0.03,217.2,217.17,0.69054044]
[1738446298737,0.03,217.2,217.17,9.65990733]
[1738446299222,0.03,217.2,217.17,0.69054044]
[1738446300044,0.03,217.2,217.17,9.65990733]
[1738446300214,0.03,217.2,217.17,0.69054044]
[1738446300631,0.03,217.2,217.19,8.96936689]
[1738446301031,0.03,217.2,217.17,9.65984339]
[1738446301330,0.03,217.2,217.18,8.96936689]
[1738446301524,0.03,217.2,217.19,29.17006311]
[1738446301741,0.03,217.23,217.21,1.0]
[1738446302044,0.03,217.31,217.23,22.16514853]
[1738446302219,0.03,217.31,217.28,22.38121542]
[1738446302420,0.03,217.31,217.28,32.40963521]
[1738446303442,0.03,217.31,217.28,18.99778668]
[1738446304560,0.03,217.31,217.28,32.40963521]
[1738446305535,0.03,217.31,217.28,18.99778668]
[1738446305755,0.03,217.31,217.28,6.0984]
[1738446305932,0.03,217.31,217.24,0.69015844]
[1738446306116,20.03,217.31,217.2,0.69038957]
[1738446306764,20.0,217.27,217.18,7.3131932]
[1738446307124,0.03,217.31,217.18,7.3131932]
[1738446307538,19.53,217.29,217.18,7.3131932]
[1738446308422,0.03,217.31,217.18,7.3131932]
[1738446308621,0.03,217.31,217.14,1.0]
[1738446308622,0.03,217.31,217.14,0.6904233]
[1738446308842,1.0,217.29,217.13,0.69062441]
[1738446309032,13.41184853,217.28,217.13,0.69062441]
[1738446309345,13.41184853,217.28,217.12,7.37639555]
[1738446309645,20.0,217.27,217.13,13.99033794]
[1738446309820,20.0,217.27,217.14,0.69064743]
[1738446310027,15.84762424,217.31,217.17,13.99033794]
[1738446310240,15.84762424,217.31,217.18,14.68086414]
[1738446310422,0.03,217.31,217.27,13.99033794]
[1738446310622,0.03,217.31,217.24,13.99033794]
[1738446310869,0.03,217.31,217.25,0.69033571]
[1738446311031,0.03,217.31,217.2,14.68072686]
[1738446311369,0.03,217.31,217.2,0.69038892]
[1738446312056,0.03,217.31,217.2,14.68072686]
[1738446312554,0.03,217.31,217.2,0.69038892]
[1738446313270,0.03,217.31,217.2,14.68072686]
[1738446313474,20.0,217.29,217.2,14.68072686]
[1738446313681,20.0,217.29,217.2,0.69038892]
[1738446314875,20.0,217.29,217.17,0.69049565]
[1738446314876,20.0,217.25,217.17,0.69049565]
[1738446315162,20.0,217.25,217.15,0.69049565]
[1738446315547,20.0,217.29,217.15,0.69049565]
[1738446315748,20.0,217.25,217.13,0.69066729]
[1738446315948,20.0,217.21,217.12,0.75370205]
[1738446316150,20.0,217.21,217.19,0.063]
[1738446318270,1.843934,217.2,217.19,0.063]
[1738446323478,1.1728692,217.25,217.19,0.063]
[1738446323665,20.0,217.27,217.19,0.063]
[1738446323979,20.0,217.23,217.19,0.063]
[1738446325059,20.0,217.29,217.19,0.063]
[1738446325259,2.83787446,217.31,217.19,0.063]
[1738446325459,20.0,217.27,217.19,0.75354556]
[1738446325766,20.0,217.27,217.19,0.063]
[1738446325973,20.0,217.27,217.19,0.75353494]
[1738446326174,20.0,217.27,217.19,0.063]
[1738446327681,20.0,217.27,217.19,6.7184]
[1738446331981,26.7184,217.27,217.19,6.7184]
[1738446334060,26.7184,217.27,217.2,0.69053165]
[1738446334461,6.7184,217.27,217.2,0.69053165]
[1738446335686,20.0,217.24,217.2,0.69053165]
[1738446337291,20.0,217.24,217.19,6.7184]
[1738446339287,20.0,217.24,217.19,0.063]
[1738446340587,20.0,217.24,217.19,0.7535276]
[1738446340888,20.0,217.24,217.19,0.063]
[1738446342402,20.0,217.23,217.19,0.063]
[1738446342687,20.0,217.19,217.11,0.063]
[1738446343991,20.0,217.19,217.12,0.753801]
[1738446344694,20.0,217.19,217.12,0.063]
[1738446345475,21.14457314,217.19,217.12,0.063]
[1738446345994,20.0,217.15,217.12,0.063]
[1738446348585,1.14457314,217.19,217.12,0.063]
[1738446348785,13.41184853,217.19,217.12,0.063]
[1738446348986,14.54008529,217.19,217.12,0.063]
[1738446349487,20.0,217.16,217.12,0.063]
[1738446349683,20.0,217.13,217.12,0.063]
[1738446350283,1.12823676,217.19,217.12,0.063]
[1738446350597,13.41184853,217.21,217.12,0.063]
[1738446350897,14.56970349,217.21,217.12,0.063]
[1738446351274,20.0,217.14,217.12,0.063]
[1738446353402,1.15785496,217.21,217.12,0.063]
[1738446353580,33.41184853,217.18,217.12,0.063]
[1738446357500,13.41184853,217.14,217.07,0.063]
[1738446357700,20.0,217.09,217.07,0.063]
[1738446359579,19.97315609,217.09,217.07,0.063]
[1738446360328,98.42778142,217.16,217.07,0.063]
[1738446360483,13.41184853,217.15,217.07,0.063]
[1738446361720,20.0,217.12,217.07,0.063]
[1738446362606,20.0,217.08,217.07,0.063]
[1738446371589,0.03,217.12,217.07,0.063]
[1738446371917,13.44184853,217.12,217.07,0.063]
[1738446372712,20.0,217.09,217.07,0.063]
[1738446372919,20.0,217.01,216.97,0.063]
[1738446373496,1.5816,217.08,216.97,0.063]
[1738446373700,20.0,217.07,216.97,0.063]
[1738446373897,20.0,216.99,216.97,0.063]
[1738446379222,20.0,216.92,216.91,4.563]
[1738446380118,20.0,216.95,216.91,4.563]
[1738446382133,20.0,216.92,216.91,4.563]
[1738446382304,33.41184853,216.92,216.87,11.09676309]
[1738446383333,20.0,216.94,216.82,1.6093]
[1738446383518,13.41184853,216.92,216.81,31.33039868]
[1738446384019,13.41184853,216.86,216.81,31.33039868]
[1738446384217,13.41184853,216.82,216.81,31.33039868]
[1738446384619,33.41184853,216.83,216.81,0.27594011]
[1738446384819,33.41184853,216.83,216.75,0.063]
[1738446385436,20.0,216.75,216.71,0.03178441]
[1738446385604,20.0,216.75,216.57,1.0]
[1738446385605,20.0,216.68,216.57,1.0]
[1738446385806,20.0,216.64,216.57,1.0]
[1738446386206,20.0,216.6,216.57,1.0]
[1738446386709,13.41184853,216.59,216.57,0.94]
[1738446387003,1.13263106,216.64,216.56,1.17124683]
[1738446387004,33.41184853,216.57,216.56,1.17124683]
[1738446387208,33.41184853,216.57,216.56,0.98263584]
[1738446387418,20.0,216.63,216.56,0.98263584]
[1738446387924,13.41184853,216.62,216.56,0.98263584]
[1738446388128,13.41184853,216.58,216.56,0.98263584]
[1738446388527,20.0,216.63,216.56,0.98263584]
[1738446388704,20.0,216.56,216.55,25.0]
[1738446388908,33.41184853,216.56,216.55,25.0]
[1738446389537,20.0,216.52,216.44,140.0825608]
[1738446390203,20.96063729,216.6,216.44,140.0825608]
[1738446390430,20.96063729,216.6,216.44,6.1055]
[1738446390625,20.0,216.58,216.44,6.1055]
[1738446391018,20.0,216.58,216.44,6.79841987]
[1738446391331,1.13898519,216.62,216.45,14.72718625]
[1738446391530,8.0873,216.66,216.47,17.03432072]
[1738446391751,1.17765632,216.68,216.49,14.03432072]
[1738446391909,1.17765632,216.68,216.5,14.72702007]
[1738446392249,1.17765632,216.68,216.51,14.03432072]
[1738446392613,1.14977409,216.66,216.51,14.03432072]
[1738446392832,13.41184853,216.65,216.5,14.03432072]
[1738446393148,13.41184853,216.65,216.49,14.03432072]
[1738446393149,0.71952873,216.62,216.49,14.03432072]
[1738446393314,0.71952873,216.62,216.53,14.03432072]
[1738446393509,0.71952873,216.68,216.56,14.03432072]
[1738446393709,0.865599,216.62,216.52,14.03432072]
[1738446393912,0.865599,216.62,216.53,0.3193176]
[1738446394133,0.865599,216.62,216.51,0.31946196]
[1738446394517,0.865599,216.62,216.51,14.35378268]
[1738446395507,0.865599,216.62,216.51,0.31946196]
[1738446395713,20.0,216.6,216.47,1.99325879]
[1738446395928,0.86598121,216.59,216.47,1.99325879]
[1738446397431,0.86598121,216.59,216.47,24.54070145]
[1738446397615,0.86598121,216.59,216.47,1.99325879]
[1738446397815,20.0,216.58,216.47,1.6737277]
[1738446398016,20.0,216.58,216.48,0.3199062]
[1738446398017,0.86605494,216.57,216.48,0.3199062]
[1738446398330,0.86591739,216.6,216.48,22.86734886]
[1738446398530,20.86591739,216.6,216.48,22.86734886]
[1738446399449,20.86591739,216.6,216.48,0.3199062]
[1738446400125,20.86591739,216.6,216.48,22.86734886]
[1738446400848,20.86591739,216.6,216.5,22.54744266]
[1738446401141,20.86591739,216.6,216.48,0.3199062]
[1738446401142,20.86591739,216.6,216.51,22.86692415]
[1738446401543,20.86591739,216.6,216.52,22.54744266]
[1738446401731,0.86569133,216.62,216.54,22.54744266]
[1738446401928,0.86569133,216.62,216.49,0.31928817]
[1738446402130,0.86569133,216.62,216.47,1.99340866]
[1738446402452,20.0,216.58,216.47,1.99340866]
[1738446402749,0.86599281,216.57,216.47,1.99340866]
[1738446403251,0.86599281,216.57,216.47,1.96656474]
[1738446403949,0.86599281,216.57,216.47,1.64688378]
[1738446405848,0.86599281,216.57,216.47,1.96669856]
[1738446406151,0.86599281,216.57,216.47,1.64688378]
[1738446408256,0.86599281,216.57,216.47,24.19432644]
[1738446408553,0.03,216.63,216.51,22.54744266]
[1738446408554,0.89584453,216.63,216.51,22.54744266]
[1738446408755,20.89584453,216.63,216.52,0.31950931]
[1738446409843,20.89584453,216.63,216.47,6.26628378]
[1738446409844,0.89584453,216.63,216.53,22.54744266]
[1738446410039,0.86569674,216.62,216.54,0.31928726]
[1738446410246,20.03,216.63,216.54,0.31928726]
[1738446410447,0.86569341,216.62,216.54,0.31928726]
[1738446411060,0.03,216.63,216.54,0.31928726]
[1738446411560,0.03,216.63,216.55,0.3192384]
[1738446412460,0.03,216.63,216.53,22.86670934]
[1738446412757,0.03,216.63,216.53,0.31926668]
[1738446413760,0.03,216.63,216.54,0.31938377]
[1738446413938,0.03,216.63,216.5,0.31938377]
[1738446415136,20.0,216.61,216.49,0.31943925]
[1738446415340,0.86592059,216.6,216.49,0.31943925]
[1738446415539,0.86592059,216.6,216.48,0.31971666]
[1738446415969,20.0,216.56,216.48,0.31971666]
[1738446416260,0.86596754,216.55,216.48,0.31971666]
[1738446416853,20.0,216.51,216.47,1.70988378]
[1738446417057,0.8662125,216.5,216.47,1.70988378]
[1738446417236,0.8662125,216.5,216.47,8.378e-05]
[1738446417569,6.4221,216.59,216.47,8.378e-05]
[1738446417570,0.86622936,216.53,216.47,8.378e-05]
[1738446417751,0.86605795,216.55,216.47,8.378e-05]
[1738446419456,0.86605795,216.55,216.47,22.54744266]
[1738446419870,0.86598537,216.58,216.48,22.54744266]
[1738446420087,0.86598537,216.58,216.49,22.54744266]
[1738446420381,13.41184853,216.56,216.42,22.54744266]
[1738446420570,0.86612932,216.55,216.42,22.54744266]
[1738446420739,0.86612932,216.55,216.41,22.54744266]
[1738446420943,0.86612932,216.55,216.42,22.54744266]
[1738446421173,20.0,216.51,216.38,6.2563]
[1738446421338,0.86625967,216.5,216.38,6.2563]
[1738446421773,0.86625967,216.5,216.38,28.80374266]
[1738446422968,0.86625967,216.5,216.38,6.2563]
[1738446423369,0.86625967,216.5,216.36,24.16104266]
[1738446423581,0.86625967,216.5,216.37,22.54744266]
[1738446423742,0.86625967,216.5,216.39,22.54744266]
[1738446424149,0.86625967,216.5,216.37,22.54744266]
[1738446424774,0.86625967,216.5,216.38,22.54744266]
[1738446425077,0.86625967,216.5,216.4,22.54744266]
[1738446425368,0.86625967,216.5,216.39,22.54744266]
[1738446425546,0.86625967,216.5,216.38,22.54744266]
[1738446426464,20.0,216.51,216.41,22.54744266]
[1738446427051,20.0,216.51,216.36,6.2354]
[1738446427052,0.86625865,216.53,216.44,22.54744266]
[1738446427285,0.86625865,216.53,216.45,22.54744266]
[1738446427494,1.643,216.58,216.45,22.54744266]
[1738446427495,14.27788624,216.57,216.45,22.54744266]
[1738446427676,14.27788624,216.57,216.4,1.0]
[1738446427857,0.03,216.5,216.44,14.09456124]
[1738446428349,0.03,216.5,216.41,14.09456124]
[1738446428550,0.03,216.5,216.4,14.09456124]
[1738446429669,0.03,216.5,216.41,14.09456124]
[1738446429862,0.03,216.5,216.43,14.09456124]
[1738446430266,0.03,216.5,216.42,14.09456124]
[1738446432375,0.03,216.5,216.43,14.09456124]
[1738446433366,0.03,216.5,216.42,14.09456124]
[1738446433676,0.03,216.5,216.43,14.09456124]
[1738446433875,0.03,216.5,216.42,14.09456124]
[1738446435275,0.03,216.5,216.41,4.09456124]
[1738446435973,0.03,216.5,216.38,14.15756124]
[1738446436369,0.89621768,216.5,216.38,14.15756124]
[1738446436992,20.0,216.46,216.38,0.063]
[1738446437204,0.86639561,216.45,216.38,0.063]
[1738446438399,2.71684461,216.45,216.38,0.063]
[1738446438957,20.0,216.44,216.38,0.063]
[1738446439164,0.86657347,216.43,216.38,0.063]
[1738446440200,20.0,216.39,216.38,0.063]
[1738446440370,20.0,216.39,216.34,0.19292672]
[1738446441075,0.86664917,216.38,216.34,0.19292672]
[1738446441469,0.86666164,216.41,216.34,0.19292672]
[1738446441658,0.86657499,216.44,216.34,0.19292672]
[1738446441861,1.850449,216.45,216.36,14.09456124]
[1738446442099,6.271,216.49,216.39,14.09456124]
[1738446442299,6.271,216.49,216.34,1.19292672]
[1738446442300,0.86623056,216.46,216.36,14.09456124]
[1738446442599,6.271,216.49,216.37,14.09456124]
[1738446442600,2.5094122,216.47,216.37,14.09456124]
[1738446443663,0.86630219,216.52,216.39,14.09456124]
[1738446443880,7.914,216.55,216.39,14.09456124]
[1738446443881,0.86619263,216.51,216.39,14.09456124]
[1738446444095,13.41184853,216.52,216.38,14.09456124]
[1738446444274,0.8962732,216.5,216.37,14.09456124]
[1738446444470,20.0,216.49,216.36,14.09456124]
[1738446444666,0.86634932,216.48,216.37,14.09456124]
[1738446444866,0.86634932,216.48,216.34,2.85942672]
[1738446444867,0.86634932,216.48,216.36,14.09456124]
[1738446446081,20.0,216.49,216.37,14.59513458]
[1738446446262,0.8663031,216.48,216.37,14.59513458]
[1738446447372,13.41184853,216.47,216.37,14.59513458]
[1738446447575,0.86633002,216.46,216.37,0.50057334]
[1738446447785,0.86633002,216.46,216.36,0.50070868]
[1738446448475,0.86633002,216.46,216.35,4.59526992]
[1738446450405,0.86633002,216.46,216.34,15.95398796]
[1738446450886,0.86633002,216.46,216.36,14.09456124]
[1738446451195,13.41184853,216.49,216.34,15.95398796]
[1738446451494,0.86637846,216.48,216.35,14.09456124]
[1738446452177,0.03,216.5,216.39,14.09456124]
[1738446452491,20.0,216.46,216.34,14.28748796]
[1738446452689,20.0,216.46,216.35,14.09456124]
[1738446452871,20.0,216.46,216.36,14.09456124]
[1738446453073,20.0,216.49,216.36,14.09456124]
[1738446453268,0.86630667,216.48,216.34,0.19292672]
[1738446453506,20.86633331,216.49,216.37,14.09456124]
[1738446453812,0.86633331,216.49,216.37,14.09456124]
[1738446453975,0.86633331,216.49,216.36,14.09456124]
[1738446454173,0.86633331,216.49,216.35,14.09456124]
[1738446455073,0.86633331,216.49,216.34,14.28748796]
[1738446455925,1.5933,216.48,216.34,14.28748796]
[1738446456219,0.86634284,216.47,216.34,14.28748796]
[1738446458733,0.86634284,216.47,216.36,14.09456124]
[1738446458945,0.86634284,216.47,216.36,4.09456124]
[1738446459816,0.86634284,216.47,216.37,14.09456124]
[1738446460025,0.03,216.5,216.41,14.09456124]
[1738446460523,20.03,216.5,216.4,14.09456124]
[1738446460919,20.03,216.5,216.38,14.09456124]
[1738446461107,0.03,216.5,216.42,14.09456124]
[1738446461307,0.03,216.5,216.38,14.09456124]
[1738446461719,20.03,216.5,216.38,14.09456124]
[1738446461899,0.03,216.5,216.39,14.09456124]
[1738446463317,0.03,216.48,216.39,14.09456124]
[1738446464022,0.03,216.48,216.37,14.09456124]
[1738446464227,0.03,216.48,216.36,14.09456124]
[1738446464522,0.03,216.48,216.35,3.303]
[1738446464523,20.03,216.48,216.35,14.15756124]
[1738446464727,0.86627161,216.47,216.35,0.063]
[1738446467524,8.1091,216.46,216.35,0.063]
[1738446468432,8.1091,216.46,216.36,14.09456124]
[1738446469409,8.1091,216.46,216.39,14.09456124]
[1738446469731,20.03,216.48,216.4,14.09456124]
[1738446470221,0.03,216.48,216.38,14.09456124]
[1738446470609,20.89618142,216.48,216.35,14.15756124]
[1738446472936,20.89618142,216.48,216.35,0.063]
[1738446473133,1.6199,216.43,216.35,0.063]
[1738446473312,6.4892,216.41,216.35,0.063]
[1738446473512,0.86657993,216.4,216.35,0.063]
[1738446473936,6.4892,216.41,216.35,0.063]
[1738446474621,6.4892,216.41,216.3,0.41556399]
[1738446474829,21.6199,216.43,216.34,14.09456124]
[1738446475315,20.0,216.43,216.3,9.27866399]
[1738446475533,20.0,216.43,216.36,14.09456124]
[1738446476533,8.1091,216.46,216.38,14.09456124]
[1738446477727,8.1091,216.46,216.37,14.09456124]
[1738446479042,0.86626482,216.45,216.35,0.063]
[1738446479628,8.1091,216.46,216.35,14.15756124]
[1738446479956,8.1091,216.46,216.36,14.09456124]
[1738446480155,8.1091,216.46,216.38,14.09456124]
[1738446480642,1.6199,216.46,216.39,14.09456124]
[1738446480843,1.6199,216.46,216.38,14.09456124]
[1738446481050,0.03,216.47,216.38,14.09456124]
[1738446481420,0.03,216.47,216.41,14.09456124]
[1738446481741,0.03,216.47,216.42,14.09456124]
[1738446481918,0.03,216.47,216.41,14.09456124]
[1738446482431,0.03,216.47,216.39,13.41184853]
[1738446482432,0.03,216.47,216.42,14.09456124]
[1738446482730,0.03,216.47,216.41,14.09456124]
[1738446483323,0.03,216.47,216.4,14.09456124]
[1738446483649,0.03,216.47,216.39,14.09456124]
[1738446484235,0.03,216.47,216.4,14.09456124]
[1738446485539,0.03,216.47,216.39,14.09456124]
[1738446488326,0.03,216.47,216.35,0.063]
[1738446488655,6.4803,216.46,216.35,0.063]
[1738446488837,7.3466548,216.46,216.35,0.063]
[1738446489039,1.5885,216.42,216.35,0.063]
[1738446489237,0.86647329,216.41,216.35,0.063]
[1738446491051,2.45501472,216.42,216.35,0.063]
[1738446491454,1.5885,216.42,216.35,0.063]
[1738446496651,2.45495272,216.42,216.35,0.063]
[1738446501750,20.0,216.38,216.35,0.063]
[1738446501974,0.86670337,216.37,216.35,0.063]
[1738446502175,20.0,216.38,216.35,0.063]
[1738446502363,0.86669036,216.37,216.35,0.063]
[1738446502952,0.86668461,216.39,216.35,0.063]
[1738446510979,1.6288,216.37,216.3,0.41556399]
[1738446511297,0.86682101,216.36,216.3,0.41556399]
[1738446512278,20.0,216.35,216.3,0.41556399]
[1738446512487,0.86682427,216.34,216.3,0.41556399]
[1738446514263,8.1947,216.32,216.17,0.27756]
[1738446514569,0.86718829,216.31,216.17,0.27756]
[1738446514969,14.10234853,216.3,216.17,0.27756]
[1738446515153,20.0,216.25,216.17,0.27756]
[1738446515348,0.86729413,216.24,216.17,0.27756]
[1738446515561,20.0,216.25,216.11,13.87212124]
[1738446515759,20.0,216.28,216.11,13.87212124]
[1738446515967,0.86714239,216.27,216.12,13.41184853]
[1738446516169,0.86714239,216.27,216.12,14.09456124]
[1738446516341,0.86714239,216.27,216.11,14.09456124]
[1738446518265,0.86714239,216.27,216.1,14.09456124]
[1738446518468,0.86714239,216.27,216.12,14.09456124]
[1738446519769,0.86714239,216.27,216.11,14.09456124]
[1738446520001,0.86714239,216.27,216.1,14.09456124]
[1738446520203,20.0,216.23,216.08,15.15756124]
[1738446520401,0.86741345,216.22,216.08,15.15756124]
[1738446521201,0.86741345,216.22,216.1,14.09456124]
[1738446521358,14.27917056,216.28,216.1,14.09456124]